[Event "Late-Titled-Tuesday-Blitz-May-28-2024"]
[Site "Chess.com"]
[Date "2024.05.28"]
[Round "8"]
[White "atalz0"]
[Black "Boninknights"]
[Result "0-1"]
[WhiteElo "2489"]
[BlackElo "2438"]
[TimeControl "180+1"]
[EndTime "15:27:19 PDT"]
[Termination "Boninknights won by resignation"]

1. d4 {[%clk 0:03:00.9]} 1... Nf6 {[%clk 0:02:58.8]} 2. c4 {[%clk 0:03:00.5]}
2... e6 {[%clk 0:02:58]} 3. Nc3 {[%clk 0:02:57.2]} 3... Bb4 {[%clk 0:02:56.4]}
4. Qc2 {[%clk 0:02:57.1]} 4... c5 {[%clk 0:02:55.1]} 5. dxc5 {[%clk 0:02:56.6]}
5... Bxc5 {[%clk 0:02:54.8]} 6. Nf3 {[%clk 0:02:56.2]} 6... Nc6 {[%clk
0:02:53.9]} 7. Bg5 {[%clk 0:02:55.7]} 7... Nd4 {[%clk 0:02:53]} 8. Nxd4 {[%clk
0:02:55.3]} 8... Bxd4 {[%clk 0:02:52.9]} 9. e3 {[%clk 0:02:52.4]} 9... Qa5
{[%clk 0:02:51.6]} 10. exd4 {[%clk 0:02:48.1]} 10... Qxg5 {[%clk 0:02:49.5]} 11.
Qd2 {[%clk 0:02:49]} 11... Qxd2+ {[%clk 0:02:48]} 12. Kxd2 {[%clk 0:02:49.9]}
12... d6 {[%clk 0:02:45.4]} 13. Be2 {[%clk 0:02:34.8]} 13... Bd7 {[%clk
0:02:44.2]} 14. Rhe1 {[%clk 0:02:22.5]} 14... O-O-O {[%clk 0:02:38.3]} 15. g4
{[%clk 0:02:11.7]} 15... g5 {[%clk 0:02:33.2]} 16. Bf3 {[%clk 0:02:00.7]} 16...
h5 {[%clk 0:02:28.6]} 17. gxh5 {[%clk 0:01:56]} 17... g4 {[%clk 0:02:27.4]} 18.
Ne4 {[%clk 0:01:14.2]} 18... Nxe4+ {[%clk 0:02:17.4]} 19. Bxe4 {[%clk
0:01:15.1]} 19... f5 {[%clk 0:02:14.1]} 20. Bg2 {[%clk 0:00:35.7]} 20... Rxh5
{[%clk 0:02:12.5]} 21. Rh1 {[%clk 0:00:34.3]} 21... Rdh8 {[%clk 0:02:10.7]} 22.
Ke3 {[%clk 0:00:22]} 22... Rxh2 {[%clk 0:02:06.3]} 23. Kf4 {[%clk 0:00:15.4]}
23... Kc7 {[%clk 0:01:58.2]} 24. Kg3 {[%clk 0:00:11.3]} 24... Rxh1 {[%clk
0:01:57.2]} 25. Rxh1 {[%clk 0:00:09.8]} 25... Rxh1 {[%clk 0:01:56.2]} 26. Bxh1
{[%clk 0:00:10.7]} 26... e5 {[%clk 0:01:55.3]} 27. dxe5 {[%clk 0:00:09]} 27...
dxe5 {[%clk 0:01:54.4]} 28. Kh4 {[%clk 0:00:09.9]} 28... f4 {[%clk 0:01:51.8]}
29. Be4 {[%clk 0:00:07.4]} 29... a5 {[%clk 0:01:44.8]} 30. Bg6 {[%clk
0:00:06.2]} 30... b6 {[%clk 0:01:42.2]} 31. Bh5 {[%clk 0:00:06.4]} 31... Kd6
{[%clk 0:01:36.3]} 32. Bxg4 {[%clk 0:00:06.5]} 32... Bxg4 {[%clk 0:01:34.8]} 33.
Kxg4 {[%clk 0:00:07.4]} 33... Kc5 {[%clk 0:01:33.6]} 34. Kf5 {[%clk 0:00:07.6]}
34... Kd4 {[%clk 0:01:32.1]} 35. f3 {[%clk 0:00:07]} 35... e4 {[%clk 0:01:28.6]}
36. fxe4 {[%clk 0:00:04.5]} 36... f3 {[%clk 0:01:28]} 37. e5 {[%clk 0:00:05.4]}
37... f2 {[%clk 0:01:27.9]} 0-1

[Event "Late-Titled-Tuesday-Blitz-May-28-2024"]
[Site "Chess.com"]
[Date "2024.05.28"]
[Round "8"]
[White "Kostukov_Alex"]
[Black "momotaro77"]
[Result "0-1"]
[WhiteElo "2381"]
[BlackElo "2526"]
[TimeControl "180+1"]
[EndTime "15:27:21 PDT"]
[Termination "momotaro77 won by resignation"]

1. g3 {[%clk 0:03:00.1]} 1... d5 {[%clk 0:02:56.5]} 2. Bg2 {[%clk 0:03:00]} 2...
Nf6 {[%clk 0:02:56.8]} 3. d3 {[%clk 0:02:59.8]} 3... c6 {[%clk 0:02:56.7]} 4. e4
{[%clk 0:02:59.9]} 4... Bg4 {[%clk 0:02:56.1]} 5. f3 {[%clk 0:02:59.6]} 5... Bc8
{[%clk 0:02:40.7]} 6. e5 {[%clk 0:02:59.7]} 6... Nfd7 {[%clk 0:02:40.2]} 7. f4
{[%clk 0:02:59.7]} 7... e6 {[%clk 0:02:40.1]} 8. Nf3 {[%clk 0:02:59.4]} 8... c5
{[%clk 0:02:39.9]} 9. c4 {[%clk 0:02:58.3]} 9... Nc6 {[%clk 0:02:33]} 10. cxd5
{[%clk 0:02:54.3]} 10... exd5 {[%clk 0:02:33.9]} 11. Nc3 {[%clk 0:02:48.2]}
11... Nb6 {[%clk 0:02:32.5]} 12. O-O {[%clk 0:02:46.3]} 12... Be7 {[%clk
0:02:30.3]} 13. d4 {[%clk 0:02:42.3]} 13... cxd4 {[%clk 0:02:26.8]} 14. Nxd4
{[%clk 0:02:40.2]} 14... h5 {[%clk 0:02:26.2]} 15. h3 {[%clk 0:02:27]} 15...
Nxd4 {[%clk 0:02:15.1]} 16. Qxd4 {[%clk 0:02:20.8]} 16... Bf5 {[%clk 0:02:15.5]}
17. Nxd5 {[%clk 0:01:56.1]} 17... Nxd5 {[%clk 0:02:12.5]} 18. Qxd5 {[%clk
0:01:49.1]} 18... Qxd5 {[%clk 0:01:56.1]} 19. Bxd5 {[%clk 0:01:50]} 19... O-O-O
{[%clk 0:01:39.1]} 20. Bg2 {[%clk 0:01:45.7]} 20... Bc5+ {[%clk 0:01:34.5]} 21.
Kh2 {[%clk 0:01:44.2]} 21... Kb8 {[%clk 0:01:34.1]} 22. Bf3 {[%clk 0:01:27.5]}
22... Rd3 {[%clk 0:01:24.1]} 23. Kg2 {[%clk 0:01:25]} 23... Rhd8 {[%clk
0:01:14.2]} 24. Bxh5 {[%clk 0:01:10.9]} 24... Be4+ {[%clk 0:01:13.7]} 25. Rf3
{[%clk 0:00:50.5]} 25... Rd1 {[%clk 0:01:02.2]} 26. b4 {[%clk 0:00:28.7]} 26...
Bd4 {[%clk 0:00:43]} 0-1

[Event "Late-Titled-Tuesday-Blitz-May-28-2024"]
[Site "Chess.com"]
[Date "2024.05.28"]
[Round "8"]
[White "Romadk"]
[Black "Blitz"]
[Result "1-0"]
[WhiteElo "2469"]
[BlackElo "2504"]
[TimeControl "180+1"]
[EndTime "15:27:27 PDT"]
[Termination "Romadk won by checkmate"]

1. d4 {[%clk 0:03:00.9]} 1... d5 {[%clk 0:02:58.2]} 2. Nf3 {[%clk 0:03:00.8]}
2... Nf6 {[%clk 0:02:58.3]} 3. g3 {[%clk 0:03:00.6]} 3... Bf5 {[%clk 0:02:47.1]}
4. Bg2 {[%clk 0:03:00.7]} 4... e6 {[%clk 0:02:46.4]} 5. c4 {[%clk 0:03:01.2]}
5... c6 {[%clk 0:02:43.9]} 6. Nc3 {[%clk 0:03:01.7]} 6... h6 {[%clk 0:02:43.8]}
7. Qb3 {[%clk 0:03:02]} 7... Qb6 {[%clk 0:02:41.6]} 8. c5 {[%clk 0:03:02.4]}
8... Qc7 {[%clk 0:02:30.2]} 9. Bf4 {[%clk 0:03:02.1]} 9... Qc8 {[%clk
0:02:30.2]} 10. Nd2 {[%clk 0:03:03]} 10... Nbd7 {[%clk 0:02:06.3]} 11. e4 {[%clk
0:03:01.4]} 11... dxe4 {[%clk 0:02:04.4]} 12. Bxe4 {[%clk 0:03:02.3]} 12... Nxe4
{[%clk 0:01:42.9]} 13. Ndxe4 {[%clk 0:03:03.2]} 13... Nf6 {[%clk 0:01:38.6]} 14.
Nd6+ {[%clk 0:02:56.9]} 14... Bxd6 {[%clk 0:01:38.5]} 15. Bxd6 {[%clk
0:02:57.8]} 15... Ne4 {[%clk 0:01:24.3]} 16. Nxe4 {[%clk 0:02:52.5]} 16... Bxe4
{[%clk 0:01:25.2]} 17. f3 {[%clk 0:02:52.4]} 17... Bd5 {[%clk 0:01:24.7]} 18.
Qe3 {[%clk 0:02:49.2]} 18... b6 {[%clk 0:01:12.5]} 19. O-O {[%clk 0:02:39.1]}
19... Qb7 {[%clk 0:00:42.6]} 20. b4 {[%clk 0:02:28.7]} 20... a5 {[%clk 0:00:12]}
21. Rfb1 {[%clk 0:02:15.9]} 21... a4 {[%clk 0:00:09.4]} 22. b5 {[%clk
0:02:14.5]} 22... bxc5 {[%clk 0:00:07.5]} 23. bxc6 {[%clk 0:02:03.6]} 23... Qxc6
{[%clk 0:00:08.4]} 24. dxc5 {[%clk 0:01:25.2]} 24... Bxf3 {[%clk 0:00:08.6]} 25.
Rb4 {[%clk 0:01:15.5]} 25... f6 {[%clk 0:00:03.2]} 26. Qxe6+ {[%clk 0:01:10.2]}
26... Kd8 {[%clk 0:00:03.8]} 27. Qe7+ {[%clk 0:00:57.6]} 27... Kc8 {[%clk
0:00:04]} 28. Rab1 {[%clk 0:00:58.5]} 28... Bh1 {[%clk 0:00:01]} 29. Rb8+ {[%clk
0:00:57.2]} 29... Rxb8 {[%clk 0:00:01.5]} 30. Rxb8# {[%clk 0:00:56.8]} 1-0

[Event "Late-Titled-Tuesday-Blitz-May-28-2024"]
[Site "Chess.com"]
[Date "2024.05.28"]
[Round "8"]
[White "dennisodessa"]
[Black "Eloist"]
[Result "1/2-1/2"]
[WhiteElo "2545"]
[BlackElo "2450"]
[TimeControl "180+1"]
[EndTime "15:27:33 PDT"]
[Termination "Game drawn by repetition"]

1. d4 {[%clk 0:03:00]} 1... e6 {[%clk 0:02:59.9]} 2. c4 {[%clk 0:03:00.1]} 2...
Nf6 {[%clk 0:03:00.2]} 3. Nc3 {[%clk 0:03:00.6]} 3... Bb4 {[%clk 0:03:00.2]} 4.
Qc2 {[%clk 0:03:00.9]} 4... c5 {[%clk 0:02:59.5]} 5. dxc5 {[%clk 0:03:00.6]}
5... O-O {[%clk 0:02:59.5]} 6. Nf3 {[%clk 0:02:59.8]} 6... Na6 {[%clk
0:02:59.5]} 7. Bg5 {[%clk 0:02:59.6]} 7... Nxc5 {[%clk 0:02:54.8]} 8. e3 {[%clk
0:03:00.1]} 8... Nce4 {[%clk 0:02:52.7]} 9. Bxf6 {[%clk 0:02:57.8]} 9... Qxf6
{[%clk 0:02:46.4]} 10. Nd4 {[%clk 0:02:51.9]} 10... Nxc3 {[%clk 0:02:39.8]} 11.
bxc3 {[%clk 0:02:52]} 11... Bc5 {[%clk 0:02:37.8]} 12. Bd3 {[%clk 0:02:51.3]}
12... g6 {[%clk 0:02:32.1]} 13. O-O {[%clk 0:02:51.6]} 13... e5 {[%clk
0:02:27.1]} 14. Nb5 {[%clk 0:02:41.3]} 14... Qd8 {[%clk 0:02:14.2]} 15. Be4
{[%clk 0:02:24.2]} 15... a6 {[%clk 0:02:13.6]} 16. Qa4 {[%clk 0:02:24.8]} 16...
d6 {[%clk 0:01:59.3]} 17. Na3 {[%clk 0:02:21.2]} 17... Bd7 {[%clk 0:01:55.2]}
18. Qb3 {[%clk 0:02:20.6]} 18... Bc6 {[%clk 0:01:50.7]} 19. Bd5 {[%clk
0:02:16.1]} 19... Bxd5 {[%clk 0:01:33.5]} 20. cxd5 {[%clk 0:02:17]} 20... b5
{[%clk 0:01:33]} 21. Nc2 {[%clk 0:02:07.5]} 21... Rb8 {[%clk 0:01:31]} 22. a4
{[%clk 0:02:06.1]} 22... Qd7 {[%clk 0:01:15.6]} 23. Nb4 {[%clk 0:02:03.4]} 23...
bxa4 {[%clk 0:01:04]} 24. Qxa4 {[%clk 0:02:04.2]} 24... Qxa4 {[%clk 0:00:55.8]}
25. Rxa4 {[%clk 0:02:05.1]} 25... Bxb4 {[%clk 0:00:39.7]} 26. cxb4 {[%clk
0:02:06]} 26... Rb6 {[%clk 0:00:31.9]} 27. e4 {[%clk 0:02:05.6]} 27... f5 {[%clk
0:00:29.7]} 28. exf5 {[%clk 0:01:50.8]} 28... Rxf5 {[%clk 0:00:27]} 29. Rc1
{[%clk 0:01:42.2]} 29... Rf4 {[%clk 0:00:24.1]} 30. Rc6 {[%clk 0:01:37.9]} 30...
Rxc6 {[%clk 0:00:22.8]} 31. dxc6 {[%clk 0:01:36.7]} 31... Rc4 {[%clk 0:00:22.9]}
32. g3 {[%clk 0:01:36.6]} 32... Rxc6 {[%clk 0:00:22.7]} 33. Ra5 {[%clk
0:01:36.9]} 33... Kf7 {[%clk 0:00:22.6]} 34. b5 {[%clk 0:01:36.9]} 34... axb5
{[%clk 0:00:21.8]} 35. Rxb5 {[%clk 0:01:37.8]} 35... Rc7 {[%clk 0:00:19]} 36. f4
{[%clk 0:01:34.7]} 36... Ke6 {[%clk 0:00:18.4]} 37. fxe5 {[%clk 0:01:34.4]}
37... dxe5 {[%clk 0:00:19.3]} 38. Kg2 {[%clk 0:01:33.1]} 38... h5 {[%clk
0:00:19.4]} 39. h4 {[%clk 0:01:33.1]} 39... Rc2+ {[%clk 0:00:19.1]} 40. Kf3
{[%clk 0:01:33.2]} 40... Kf5 {[%clk 0:00:19.2]} 41. Rb6 {[%clk 0:01:30.5]} 41...
Rc3+ {[%clk 0:00:19.3]} 42. Kf2 {[%clk 0:01:31]} 42... Rc2+ {[%clk 0:00:17.6]}
43. Kf3 {[%clk 0:01:31.3]} 43... e4+ {[%clk 0:00:17.9]} 44. Ke3 {[%clk
0:01:30.5]} 44... Rc3+ {[%clk 0:00:18.2]} 45. Kf2 {[%clk 0:01:30.7]} 45... Rf3+
{[%clk 0:00:18.2]} 46. Kg2 {[%clk 0:01:31]} 46... Rd3 {[%clk 0:00:16.1]} 47.
Rb5+ {[%clk 0:01:29.1]} 47... Kf6 {[%clk 0:00:16.4]} 48. Rb6+ {[%clk 0:01:29.4]}
48... Kf5 {[%clk 0:00:16.5]} 49. Rb5+ {[%clk 0:01:29.5]} 49... Kf6 {[%clk
0:00:16.4]} 50. Rb6+ {[%clk 0:01:29.9]} 50... Kf5 {[%clk 0:00:16.7]} 1/2-1/2

[Event "Late-Titled-Tuesday-Blitz-May-28-2024"]
[Site "Chess.com"]
[Date "2024.05.28"]
[Round "8"]
[White "WindWhistler11"]
[Black "dawid498"]
[Result "0-1"]
[WhiteElo "2522"]
[BlackElo "2673"]
[TimeControl "180+1"]
[EndTime "15:27:35 PDT"]
[Termination "dawid498 won on time"]

1. Nf3 {[%clk 0:03:00.7]} 1... g6 {[%clk 0:02:58.5]} 2. g3 {[%clk 0:03:00.4]}
2... Bg7 {[%clk 0:02:58.9]} 3. Bg2 {[%clk 0:03:01]} 3... Nf6 {[%clk 0:02:59.6]}
4. O-O {[%clk 0:03:01.2]} 4... O-O {[%clk 0:03:00.5]} 5. c4 {[%clk 0:03:01.9]}
5... c5 {[%clk 0:02:59.8]} 6. Nc3 {[%clk 0:02:57.8]} 6... Nc6 {[%clk 0:02:58.6]}
7. a3 {[%clk 0:02:58.3]} 7... a6 {[%clk 0:02:48.2]} 8. b4 {[%clk 0:02:56.1]}
8... cxb4 {[%clk 0:02:39.9]} 9. axb4 {[%clk 0:02:57]} 9... Nxb4 {[%clk
0:02:40.8]} 10. d4 {[%clk 0:02:56.6]} 10... d5 {[%clk 0:02:38.3]} 11. Ba3 {[%clk
0:02:50.7]} 11... Nc6 {[%clk 0:02:38.4]} 12. cxd5 {[%clk 0:02:41]} 12... Nxd5
{[%clk 0:02:39.3]} 13. Nxd5 {[%clk 0:02:40.8]} 13... Qxd5 {[%clk 0:02:40.2]} 14.
Ne5 {[%clk 0:02:41.3]} 14... Qxd4 {[%clk 0:02:24.5]} 15. Nxc6 {[%clk 0:02:31.1]}
15... bxc6 {[%clk 0:02:24.1]} 16. Qxd4 {[%clk 0:02:25.6]} 16... Bxd4 {[%clk
0:02:25]} 17. Rac1 {[%clk 0:02:26]} 17... Be6 {[%clk 0:01:59.6]} 18. Bxc6 {[%clk
0:02:10.2]} 18... Rab8 {[%clk 0:01:53.3]} 19. Bxe7 {[%clk 0:02:04.5]} 19... Rfc8
{[%clk 0:01:53.3]} 20. Rfd1 {[%clk 0:01:48.5]} 20... Bb2 {[%clk 0:01:51]} 21.
Rc5 {[%clk 0:01:13.8]} 21... Ba3 {[%clk 0:01:42.3]} 22. Ra5 {[%clk 0:00:40.7]}
22... Bxe7 {[%clk 0:01:40.8]} 23. Rxa6 {[%clk 0:00:41.6]} 23... Bc4 {[%clk
0:01:12.1]} 24. Be4 {[%clk 0:00:15.4]} 24... Bxa6 {[%clk 0:01:11.5]} 25. Rd7
{[%clk 0:00:13.8]} 25... Re8 {[%clk 0:01:08.6]} 26. Bxg6 {[%clk 0:00:14.7]}
26... hxg6 {[%clk 0:01:08.6]} 27. Kg2 {[%clk 0:00:14.8]} 27... Bb7+ {[%clk
0:01:08.7]} 28. Rxb7 {[%clk 0:00:04.1]} 28... Rxb7 {[%clk 0:01:09.6]} 29. e3
{[%clk 0:00:03.9]} 29... Kg7 {[%clk 0:01:09.8]} 30. e4 {[%clk 0:00:04.8]} 30...
f5 {[%clk 0:01:10.4]} 31. g4 {[%clk 0:00:05.7]} 31... fxe4 {[%clk 0:01:10.8]}
32. h4 {[%clk 0:00:06.6]} 32... Bd6 {[%clk 0:01:11.1]} 33. h5 {[%clk 0:00:06.6]}
33... gxh5 {[%clk 0:01:11.6]} 34. g5 {[%clk 0:00:06]} 34... Rf7 {[%clk
0:01:11.9]} 35. f4 {[%clk 0:00:06.9]} 35... Rxf4 {[%clk 0:01:11.8]} 0-1

[Event "Late-Titled-Tuesday-Blitz-May-28-2024"]
[Site "Chess.com"]
[Date "2024.05.28"]
[Round "8"]
[White "David_ATM"]
[Black "nabukatnezarr"]
[Result "1/2-1/2"]
[WhiteElo "2423"]
[BlackElo "2638"]
[TimeControl "180+1"]
[EndTime "15:27:41 PDT"]
[Termination "Game drawn by repetition"]

1. e4 {[%clk 0:03:00.9]} 1... a5 {[%clk 0:03:00.9]} 2. d4 {[%clk 0:02:59.9]}
2... a4 {[%clk 0:03:01.8]} 3. a3 {[%clk 0:02:59.2]} 3... e6 {[%clk 0:03:02.7]}
4. Nc3 {[%clk 0:02:59.3]} 4... d5 {[%clk 0:03:02.9]} 5. exd5 {[%clk 0:02:59.2]}
5... exd5 {[%clk 0:03:03.8]} 6. Nf3 {[%clk 0:02:59.1]} 6... Nf6 {[%clk
0:03:03.1]} 7. Bb5+ {[%clk 0:02:53.9]} 7... Bd7 {[%clk 0:03:02.6]} 8. Bxd7+
{[%clk 0:02:50.6]} 8... Nbxd7 {[%clk 0:03:03.5]} 9. O-O {[%clk 0:02:50.5]} 9...
Be7 {[%clk 0:03:04]} 10. Re1 {[%clk 0:02:48.6]} 10... O-O {[%clk 0:03:04.9]} 11.
Bf4 {[%clk 0:02:48.1]} 11... c6 {[%clk 0:03:03.8]} 12. h3 {[%clk 0:02:48.1]}
12... Re8 {[%clk 0:03:03.2]} 13. Ne5 {[%clk 0:02:47.1]} 13... Nf8 {[%clk
0:03:03.1]} 14. Bh2 {[%clk 0:02:45]} 14... Ne6 {[%clk 0:03:03.8]} 15. Ne2 {[%clk
0:02:43.7]} 15... Nd7 {[%clk 0:03:02.3]} 16. Nxd7 {[%clk 0:02:41.7]} 16... Qxd7
{[%clk 0:03:03.2]} 17. c3 {[%clk 0:02:40.6]} 17... Bf6 {[%clk 0:03:03.7]} 18.
Nf4 {[%clk 0:02:38.9]} 18... Nxf4 {[%clk 0:03:01.2]} 19. Bxf4 {[%clk 0:02:39.8]}
19... b5 {[%clk 0:03:01.5]} 20. Qg4 {[%clk 0:02:30.9]} 20... Qxg4 {[%clk
0:02:53.9]} 21. hxg4 {[%clk 0:02:31.8]} 21... g5 {[%clk 0:02:50.8]} 22. Bd6
{[%clk 0:02:25.8]} 22... Kg7 {[%clk 0:02:48.2]} 23. f3 {[%clk 0:02:21.3]} 23...
Kg6 {[%clk 0:02:48]} 24. Kf2 {[%clk 0:02:20.8]} 24... h5 {[%clk 0:02:47]} 25.
gxh5+ {[%clk 0:02:15]} 25... Kxh5 {[%clk 0:02:47.9]} 26. g4+ {[%clk 0:02:14.6]}
26... Kg6 {[%clk 0:02:46.9]} 27. Rxe8 {[%clk 0:02:04.7]} 27... Rxe8 {[%clk
0:02:47.8]} 28. Rh1 {[%clk 0:02:00.2]} 28... Rh8 {[%clk 0:02:45.7]} 29. Rxh8
{[%clk 0:01:57.1]} 29... Bxh8 {[%clk 0:02:46.6]} 30. Ke3 {[%clk 0:01:23]} 30...
f5 {[%clk 0:02:41.3]} 31. Kd3 {[%clk 0:01:21.9]} 31... fxg4 {[%clk 0:02:33.7]}
32. fxg4 {[%clk 0:01:22.8]} 32... Kf7 {[%clk 0:02:34.2]} 33. Kc2 {[%clk
0:01:18.1]} 33... Ke6 {[%clk 0:02:34.6]} 34. Bb4 {[%clk 0:01:03.8]} 34... Bf6
{[%clk 0:02:32.8]} 35. Bc5 {[%clk 0:01:03.2]} 35... Bd8 {[%clk 0:02:22.9]} 36.
Kd3 {[%clk 0:01:02.9]} 36... Bc7 {[%clk 0:02:21.4]} 37. Bb4 {[%clk 0:00:59.9]}
37... Bf4 {[%clk 0:02:20.6]} 38. Bc5 {[%clk 0:00:59.9]} 38... Bc7 {[%clk
0:02:19]} 39. Bb4 {[%clk 0:01:00.1]} 39... Bb6 {[%clk 0:02:19.7]} 40. Bf8 {[%clk
0:00:58.9]} 40... Kd7 {[%clk 0:02:18.3]} 41. Bb4 {[%clk 0:00:54.6]} 41... Bd8
{[%clk 0:02:08.7]} 42. Bf8 {[%clk 0:00:53.6]} 42... Bc7 {[%clk 0:02:08.2]} 43.
Bc5 {[%clk 0:00:50.8]} 43... Bf4 {[%clk 0:02:08.4]} 44. Bf8 {[%clk 0:00:50.6]}
44... Kc7 {[%clk 0:01:55]} 45. Be7 {[%clk 0:00:48.8]} 45... Kb6 {[%clk
0:01:53.9]} 46. Bd8+ {[%clk 0:00:48]} 46... Kb7 {[%clk 0:01:53.5]} 47. Be7
{[%clk 0:00:48.3]} 47... Kc8 {[%clk 0:01:53.6]} 48. Bc5 {[%clk 0:00:44.7]} 48...
Kd7 {[%clk 0:01:53.9]} 49. Bf8 {[%clk 0:00:45.1]} 49... Bc7 {[%clk 0:01:53.1]}
50. Bc5 {[%clk 0:00:44.9]} 50... Ba5 {[%clk 0:01:52.4]} 51. Bf8 {[%clk
0:00:44.3]} 51... Bb6 {[%clk 0:01:52.3]} 52. Bh6 {[%clk 0:00:43.1]} 52... Bd8
{[%clk 0:01:31.6]} 53. Bf8 {[%clk 0:00:43.6]} 53... Ke6 {[%clk 0:01:29.8]} 54.
Bc5 {[%clk 0:00:43.2]} 54... Kf6 {[%clk 0:01:28.3]} 55. Bd6 {[%clk 0:00:42.7]}
55... Bb6 {[%clk 0:01:27.8]} 56. Bf8 {[%clk 0:00:42.3]} 56... Kf7 {[%clk
0:01:24.9]} 57. Bd6 {[%clk 0:00:42.2]} 57... Kg6 {[%clk 0:01:23.9]} 58. Be7
{[%clk 0:00:42.2]} 58... Bc7 {[%clk 0:01:23.7]} 59. Bc5 {[%clk 0:00:42]} 59...
Bf4 {[%clk 0:01:24.2]} 60. Be7 {[%clk 0:00:42.2]} 60... Kf7 {[%clk 0:01:24.4]}
61. Bc5 {[%clk 0:00:41.8]} 61... Bc1 {[%clk 0:01:22.9]} 62. Kc2 {[%clk
0:00:41.7]} 62... Be3 {[%clk 0:01:23.4]} 63. Kd3 {[%clk 0:00:42.3]} 63... Bf4
{[%clk 0:01:23.5]} 64. Bb4 {[%clk 0:00:41.7]} 64... Ke8 {[%clk 0:01:23.7]} 65.
Bc5 {[%clk 0:00:42]} 65... Kd7 {[%clk 0:01:23.7]} 1/2-1/2

[Event "Late-Titled-Tuesday-Blitz-May-28-2024"]
[Site "Chess.com"]
[Date "2024.05.28"]
[Round "8"]
[White "Chaubunagungamaug1"]
[Black "rhungaski"]
[Result "0-1"]
[WhiteElo "2465"]
[BlackElo "2608"]
[TimeControl "180+1"]
[EndTime "15:27:44 PDT"]
[Termination "rhungaski won by resignation"]

1. d4 {[%clk 0:03:00.9]} 1... g6 {[%clk 0:02:58.1]} 2. c4 {[%clk 0:02:56.3]}
2... Bg7 {[%clk 0:02:58.4]} 3. e4 {[%clk 0:02:54.9]} 3... d6 {[%clk 0:02:57.9]}
4. Nc3 {[%clk 0:02:53.9]} 4... e5 {[%clk 0:02:49.6]} 5. dxe5 {[%clk 0:02:44.8]}
5... dxe5 {[%clk 0:02:50.5]} 6. Qxd8+ {[%clk 0:02:44]} 6... Kxd8 {[%clk
0:02:51.4]} 7. Be3 {[%clk 0:02:40.7]} 7... Be6 {[%clk 0:02:39.5]} 8. Nf3 {[%clk
0:02:33.7]} 8... f6 {[%clk 0:02:38.9]} 9. O-O-O+ {[%clk 0:02:30.2]} 9... Nd7
{[%clk 0:02:38.6]} 10. Kc2 {[%clk 0:02:29.2]} 10... Nh6 {[%clk 0:02:38.1]} 11.
h3 {[%clk 0:02:27.7]} 11... c6 {[%clk 0:02:35]} 12. b3 {[%clk 0:02:21.9]} 12...
Kc7 {[%clk 0:02:35.2]} 13. g4 {[%clk 0:02:17.6]} 13... Nf7 {[%clk 0:02:34.3]}
14. Be2 {[%clk 0:02:10.1]} 14... b6 {[%clk 0:02:18.9]} 15. Nd5+ {[%clk
0:02:01.3]} 15... Kb7 {[%clk 0:02:06.2]} 16. Kb2 {[%clk 0:01:57.3]} 16... Nc5
{[%clk 0:02:03.2]} 17. Bxc5 {[%clk 0:01:55.4]} 17... bxc5 {[%clk 0:02:04.1]} 18.
Nc3 {[%clk 0:01:52]} 18... Rhd8 {[%clk 0:02:02.3]} 19. Na4 {[%clk 0:01:50.7]}
19... Bf8 {[%clk 0:02:02.5]} 20. Bd3 {[%clk 0:01:36.6]} 20... Kc7 {[%clk
0:01:57.4]} 21. Bc2 {[%clk 0:01:36.1]} 21... Be7 {[%clk 0:01:41.4]} 22. Kc3
{[%clk 0:01:22.1]} 22... Ng5 {[%clk 0:01:30.5]} 23. Rxd8 {[%clk 0:01:00.6]}
23... Rxd8 {[%clk 0:01:28.7]} 24. Ne1 {[%clk 0:01:01.2]} 24... Bf7 {[%clk
0:01:26]} 25. h4 {[%clk 0:00:46.1]} 25... Ne6 {[%clk 0:01:25.8]} 26. Nd3 {[%clk
0:00:44.2]} 26... Rd4 {[%clk 0:01:23.2]} 27. f3 {[%clk 0:00:41.7]} 27... Bf8
{[%clk 0:01:13.7]} 28. Rh2 {[%clk 0:00:38.2]} 28... Kd6 {[%clk 0:01:13.6]} 29.
Rd2 {[%clk 0:00:37.8]} 29... Bh6 {[%clk 0:01:11.8]} 30. Rd1 {[%clk 0:00:36.9]}
30... Be3 {[%clk 0:01:08.1]} 31. Re1 {[%clk 0:00:31.1]} 31... Bh6 {[%clk
0:01:05.5]} 32. Rd1 {[%clk 0:00:31.4]} 32... Bf8 {[%clk 0:01:05.6]} 33. Rd2
{[%clk 0:00:31]} 33... Be7 {[%clk 0:01:05.5]} 34. Rd1 {[%clk 0:00:31.1]} 34...
Bd8 {[%clk 0:01:05.6]} 35. Rd2 {[%clk 0:00:31.2]} 35... Ba5+ {[%clk 0:01:05.7]}
36. b4 {[%clk 0:00:21.3]} 36... cxb4+ {[%clk 0:01:06.6]} 37. Kb3 {[%clk
0:00:21.2]} 37... c5 {[%clk 0:01:03.4]} 38. Re2 {[%clk 0:00:20.3]} 38... Kc6
{[%clk 0:00:48.3]} 39. Nab2 {[%clk 0:00:19.9]} 39... Rd8 {[%clk 0:00:47.9]} 40.
a4 {[%clk 0:00:19.4]} 40... Nd4+ {[%clk 0:00:48.2]} 0-1

[Event "Late-Titled-Tuesday-Blitz-May-28-2024"]
[Site "Chess.com"]
[Date "2024.05.28"]
[Round "8"]
[White "crazycheesecake"]
[Black "Roedor"]
[Result "0-1"]
[WhiteElo "2128"]
[BlackElo "2329"]
[TimeControl "180+1"]
[EndTime "15:27:53 PDT"]
[Termination "Roedor won by checkmate"]

1. Nf3 {[%clk 0:02:55.2]} 1... Nf6 {[%clk 0:02:59.6]} 2. c4 {[%clk 0:02:55.4]}
2... g6 {[%clk 0:02:59.2]} 3. g3 {[%clk 0:02:55.2]} 3... Bg7 {[%clk 0:02:59.6]}
4. Bg2 {[%clk 0:02:55.8]} 4... O-O {[%clk 0:03:00.1]} 5. O-O {[%clk 0:02:55.9]}
5... d6 {[%clk 0:03:00.5]} 6. Nc3 {[%clk 0:02:55.3]} 6... Nc6 {[%clk 0:03:00.9]}
7. d3 {[%clk 0:02:53.5]} 7... e5 {[%clk 0:03:00.4]} 8. Rb1 {[%clk 0:02:53.9]}
8... a5 {[%clk 0:02:59.4]} 9. a3 {[%clk 0:02:52.6]} 9... Nh5 {[%clk 0:02:59.7]}
10. b4 {[%clk 0:02:46.4]} 10... axb4 {[%clk 0:03:00.6]} 11. axb4 {[%clk
0:02:46.4]} 11... f5 {[%clk 0:03:01.2]} 12. b5 {[%clk 0:02:45.9]} 12... Ne7
{[%clk 0:03:01.1]} 13. Qb3 {[%clk 0:02:41.8]} 13... h6 {[%clk 0:02:50.4]} 14.
Ba3 {[%clk 0:02:25]} 14... Be6 {[%clk 0:02:46.5]} 15. b6 {[%clk 0:02:23.9]}
15... c6 {[%clk 0:02:43.2]} 16. Qb4 {[%clk 0:02:21.1]} 16... c5 {[%clk
0:02:40.1]} 17. Qb3 {[%clk 0:02:15.3]} 17... Nc6 {[%clk 0:02:39]} 18. Nb5 {[%clk
0:02:07.3]} 18... e4 {[%clk 0:02:35.1]} 19. dxe4 {[%clk 0:01:57.7]} 19... fxe4
{[%clk 0:02:36]} 20. Nd2 {[%clk 0:01:52.2]} 20... d5 {[%clk 0:01:47.3]} 21. Nc7
{[%clk 0:01:34.8]} 21... Nd4 {[%clk 0:01:34.2]} 22. Qd1 {[%clk 0:00:39.5]} 22...
Bg4 {[%clk 0:01:26]} 23. Bxc5 {[%clk 0:00:34.2]} 23... Nxe2+ {[%clk 0:01:25.1]}
24. Kh1 {[%clk 0:00:22.8]} 24... Nexg3+ {[%clk 0:01:20]} 25. fxg3 {[%clk
0:00:20.5]} 25... Bxd1 {[%clk 0:01:20.4]} 26. Rfxd1 {[%clk 0:00:20.4]} 26... Ra2
{[%clk 0:00:54.5]} 27. Bxf8 {[%clk 0:00:17]} 27... Qxf8 {[%clk 0:00:55.4]} 28.
cxd5 {[%clk 0:00:17.2]} 28... e3 {[%clk 0:00:52.6]} 29. Ne4 {[%clk 0:00:15.7]}
29... e2 {[%clk 0:00:40.6]} 30. Rd3 {[%clk 0:00:07.8]} 30... Ra1 {[%clk
0:00:36.2]} 31. Rxa1 {[%clk 0:00:06.1]} 31... Bxa1 {[%clk 0:00:37.1]} 32. Re3
{[%clk 0:00:02.8]} 32... Qf1+ {[%clk 0:00:37]} 33. Bxf1 {[%clk 0:00:02.4]} 33...
exf1=Q# {[%clk 0:00:37.9]} 0-1